bitfinex-derivatives/quotes_ETHF0:USTF0_20250804
["timestamp","ask_amount","ask_price","bid_price","bid_amount"]
[1754326033154,2.8223,3689.6,3689.5,3.74982]
[1754326033753,2.8223,3689.6,3689.5,3.2078]
[1754326033964,1.7206,3688.8,3688.4,1.39198]
[1754326034261,2.0076,3688.7,3688.4,0.54218]
[1754326034560,2.0076,3688.7,3688.5,0.8166]
[1754326034756,0.8147,3688.8,3688.2,3.2078]
[1754326034757,0.54217,3688.5,3688.2,4.0244]
[1754326034955,2.8223,3688.3,3688.2,3.2078]
[1754326035459,2.0076,3688.3,3688.2,4.0244]
[1754326035858,5.2154,3689.0,3688.5,0.8166]
[1754326036162,2.8223,3688.8,3688.6,1.0815]
[1754326036461,1.7206,3688.8,3688.7,0.54214]
[1754326036652,1.7206,3688.8,3688.6,2.44025]
[1754326036855,3.2078,3689.0,3688.8,0.54213]
[1754326037163,5.2154,3689.5,3689.3,1.35864]
[1754326037358,0.8147,3689.8,3689.5,0.54202]
[1754326037551,3.2078,3689.9,3689.7,0.54198]
[1754326037752,0.9059,3689.7,3689.1,4.8742]
[1754326037958,3.2078,3689.9,3689.2,0.54207]
[1754326038256,5.2154,3689.9,3689.1,1.6664]
[1754326038450,2.26259,3689.8,3689.5,0.54201]
[1754326038653,0.9059,3689.7,3689.5,2.44011]
[1754326038855,2.54961,3689.7,3689.5,2.44011]
[1754326039052,2.54961,3689.7,3689.5,1.8981]
[1754326039565,3.36431,3689.7,3689.5,2.44011]
[1754326039864,2.0076,3689.4,3689.2,0.8166]
[1754326040161,2.8223,3689.2,3689.1,0.54208]
[1754326040362,3.2078,3689.9,3689.4,0.54203]
[1754326040363,2.0076,3689.5,3689.4,0.54203]
[1754326041373,2.0076,3689.5,3689.1,0.8166]
[1754326041557,0.54203,3689.5,3689.2,0.54207]
[1754326041860,2.45845,3689.3,3689.1,0.54207]
[1754326042062,2.0076,3689.2,3689.1,0.54207]
[1754326042460,1.44796,3689.3,3689.1,1.8981]
[1754326042763,0.54213,3688.9,3688.6,5.1059]
[1754326042952,2.8223,3688.8,3688.7,0.54213]
[1754326043359,0.54212,3688.9,3688.7,2.44023]
[1754326043558,0.54212,3688.9,3688.8,1.0815]
[1754326043755,1.44802,3688.9,3688.7,1.35873]
[1754326043960,3.36442,3688.9,3688.7,1.35873]
[1754326044165,2.0076,3688.7,3688.6,3.74995]
[1754326044564,2.0076,3688.7,3688.6,4.56655]
[1754326044868,2.8223,3688.7,3688.6,3.2078]
[1754326045159,2.8223,3688.3,3688.2,3.2078]
[1754326045361,2.8223,3688.3,3687.8,3.2078]
[1754326045362,0.54226,3687.9,3687.8,3.2078]
[1754326045565,3.36456,3687.9,3687.8,3.2078]
[1754326045963,2.0076,3687.5,3687.4,0.54232]
[1754326046161,2.0076,3687.5,3687.3,4.56674]
[1754326046363,2.0076,3687.5,3687.3,3.2078]
[1754326046364,0.54233,3687.5,3687.3,3.2078]
[1754326046562,0.54237,3687.2,3686.9,5.6483]
[1754326046862,0.5424,3687.0,3686.5,4.0244]
[1754326047073,0.65083621,3687.4,3686.5,3.2078]
[1754326047264,3.2078,3687.5,3686.5,3.2078]
[1754326047265,0.54243,3686.8,3686.5,3.75026]
[1754326047465,0.9059,3686.6,3686.5,3.2078]
[1754326047770,2.8223,3686.6,3686.4,0.54248]
[1754326047963,2.8223,3686.5,3686.4,0.54248]
[1754326048261,1.35703,3687.5,3686.5,1.35617]
[1754326048467,2.0076,3687.4,3687.2,1.8981]
[1754326048768,1.1017,3687.8,3687.0,3.2078]
[1754326048967,0.54229,3687.8,3687.1,1.6664]
[1754326049269,2.5499,3687.7,3687.5,0.8166]
[1754326049770,0.5423,3687.7,3687.5,0.8166]
[1754326049969,0.54235,3687.4,3687.1,0.8166]
[1754326050166,3.2078,3688.0,3687.1,0.8166]
[1754326050167,0.54229,3687.7,3687.4,0.54233]
[1754326050466,0.54226,3687.9,3687.7,1.8981]
[1754326050963,0.5423,3687.6,3687.5,1.0815]
[1754326051168,0.5423,3687.6,3687.4,3.2078]
[1754326051169,2.8223,3687.5,3687.4,3.2078]
[1754326051371,2.8223,3687.5,3687.4,4.0244]
[1754326051569,0.9059,3687.5,3687.4,5.1059]
[1754326051770,0.5423,3687.7,3687.4,5.1391]
[1754326051966,2.5499,3687.7,3687.5,0.8166]
[1754326052167,3.2078,3688.3,3687.7,3.29019]
[1754326052465,0.54226,3687.9,3687.7,0.8498]
[1754326052664,3.36456,3687.9,3687.7,0.8498]
[1754326052865,3.36456,3687.9,3687.7,2.20868]
[1754326053259,2.0076,3687.9,3687.8,1.8981]
[1754326053465,0.54224,3688.1,3687.9,1.35886]
[1754326053670,2.8223,3688.0,3687.9,0.8166]
[1754326053970,0.54219,3688.4,3688.2,0.54221]
[1754326054268,1.9164,3688.1,3687.8,2.44036]
[1754326054467,2.8223,3688.0,3687.4,3.2078]
[1754326054764,0.54219,3688.4,3688.1,0.54222]
[1754326054969,1.7206,3688.3,3688.1,2.44032]
[1754326055168,0.54219,3688.4,3688.3,0.8166]
[1754326055566,1.44809,3688.4,3688.3,0.8166]
[1754326055767,2.54979,3688.4,3688.3,0.8166]
[1754326055964,0.54213,3688.8,3688.7,0.8166]
[1754326056159,0.54213,3688.8,3688.7,2.7479]
[1754326057160,0.9059,3689.1,3688.7,2.7479]
[1754326057370,0.54212,3688.9,3688.8,0.8166]
[1754326057564,0.54212,3688.9,3688.8,1.8981]
[1754326057764,0.54218,3688.5,3688.4,1.8981]
[1754326057963,0.54235,3687.4,3687.1,1.6664]
[1754326058171,3.36466,3687.3,3687.1,2.7479]
[1754326058368,3.36466,3687.3,3687.2,0.8166]
[1754326058670,2.54996,3687.3,3687.2,1.8981]
[1754326058872,3.36466,3687.3,3687.2,0.8166]
[1754326059067,2.8223,3687.5,3686.9,3.2078]
[1754326059259,0.54237,3687.2,3687.0,0.54238]
[1754326059464,0.54236,3687.2,3687.1,0.8166]
[1754326059669,0.54236,3687.3,3687.1,0.8166]
[1754326059862,2.54996,3687.3,3687.1,1.8981]
[1754326060269,2.54996,3687.3,3687.1,1.0815]
[1754326060463,2.54996,3687.3,3687.2,1.822]
[1754326060966,1.40158,3687.1,3687.0,1.6258]
[1754326061270,2.7343,3687.0,3686.9,3.2078]
[1754326061867,2.7343,3687.0,3686.9,5.0298]
[1754326062073,0.8592,3687.0,3686.9,5.0298]
[1754326062266,0.54238,3687.1,3687.0,1.822]
[1754326062868,3.2078,3687.5,3687.0,1.822]
[1754326062869,0.54237,3687.2,3687.0,2.36438]
[1754326063069,0.54237,3687.2,3687.1,2.6945]
[1754326063371,0.54236,3687.3,3687.2,2.6945]
[1754326063576,0.54238,3687.1,3687.0,0.54238]
[1754326063770,2.20448,3687.1,3687.0,0.776]
[1754326063978,0.54237,3687.2,3687.1,1.822]
[1754326064275,3.27667,3687.2,3687.1,0.776]
[1754326064468,0.54242,3686.9,3686.7,1.046]
[1754326064667,1.9314,3686.8,3686.7,0.776]
[1754326065172,0.54245,3686.7,3686.5,3.2078]
[1754326065377,1.9314,3686.7,3686.6,1.822]
[1754326065674,0.54243,3686.8,3686.7,2.6945]
[1754326066170,1.40162,3686.9,3686.7,2.46093]
[1754326066470,1.35556,3688.2,3687.2,0.4544]
[1754326066669,1.35556,3688.2,3687.4,1.3269]
[1754326066670,0.5423,3687.7,3687.4,1.3269]
[1754326066871,0.5423,3687.7,3687.1,3.2078]
[1754326066872,0.54231,3687.6,3687.5,2.1029]
[1754326067062,1.61451,3687.6,3687.5,2.1029]
[1754326067264,1.61451,3687.6,3687.5,1.6485]
[1754326067566,1.8751,3688.8,3687.6,2.1029]
[1754326067767,2.42756,3688.7,3688.0,2.19074]
[1754326067968,1.0722,3688.6,3688.0,2.19074]
[1754326068367,1.8751,3688.2,3688.1,1.6485]
[1754326068571,0.54217,3688.6,3688.1,0.4544]
[1754326068765,3.2078,3688.9,3688.2,1.6485]
[1754326068766,0.8029,3688.3,3688.2,1.6485]
[1754326068969,2.7343,3688.3,3688.2,1.6485]
[1754326069371,1.8751,3688.3,3688.2,1.6485]
[1754326069775,3.2765,3688.3,3688.2,1.6485]
[1754326069977,2.7343,3688.3,3688.2,1.6485]
[1754326070379,3.2765,3688.3,3688.0,0.54224]
[1754326070576,1.0722,3688.1,3688.0,1.41474]
[1754326070870,1.0722,3688.1,3688.0,2.19074]
[1754326071078,1.0722,3688.1,3688.0,2.64514]
[1754326071375,1.6621,3688.3,3688.1,1.6485]
[1754326071579,1.0722,3688.7,3688.1,1.6485]
[1754326071876,3.2078,3688.9,3688.2,1.6485]
[1754326071877,1.0722,3688.3,3688.2,1.6485]
[1754326072071,0.54222,3688.2,3687.9,3.2078]
[1754326072272,1.8751,3688.0,3687.9,3.75005]
[1754326072474,2.7343,3688.0,3687.9,3.75005]
[1754326073080,1.0722,3688.5,3688.4,1.41469]
[1754326073278,4.8699,3688.9,3688.7,1.6485]
[1754326073279,1.0722,3688.8,3688.7,1.6485]
[1754326074176,1.8751,3688.8,3688.7,1.6485]
[1754326075180,2.47351,3689.0,3688.8,0.54213]
[1754326075368,2.7343,3688.9,3688.8,1.41463]
[1754326075578,0.8029,3689.3,3688.8,0.8725]
[1754326075880,1.6621,3689.2,3689.1,1.41457]
[1754326076282,2.7343,3689.2,3689.1,2.19057]
[1754326076578,1.8751,3689.2,3689.1,2.19057]
[1754326076776,1.0722,3689.2,3689.1,2.19057]
[1754326076974,3.2078,3689.9,3689.0,1.35525]
[1754326077175,1.8751,3689.9,3689.2,3.2078]
[1754326077377,2.7343,3689.7,3689.6,0.542]
[1754326077682,1.8751,3689.7,3689.6,2.1905]
[1754326077976,2.7343,3689.7,3689.6,2.1905]
[1754326078880,0.54205,3689.4,3689.2,4.52586]
[1754326079074,2.7343,3689.3,3689.2,4.52586]
[1754326079482,2.7343,3689.3,3689.2,3.9838]
[1754326079779,2.7343,3689.3,3689.2,3.2078]
[1754326079984,2.7343,3689.3,3689.2,4.8563]
[1754326079985,1.8751,3689.3,3689.2,4.8563]
[1754326080183,2.7343,3689.3,3689.2,4.0803]
[1754326080377,1.0722,3689.3,3689.2,5.3107]
[1754326080787,0.54205,3689.4,3689.2,3.2078]
[1754326080982,1.6621,3689.3,3689.2,3.2078]
[1754326081183,1.6621,3689.3,3688.7,0.8725]
[1754326081184,1.35493,3689.9,3688.8,3.2078]
[1754326081478,0.54202,3689.6,3689.2,2.1029]
[1754326081684,0.542,3689.7,3689.2,3.2078]
[1754326081984,1.61419,3689.8,3689.7,1.6485]
[1754326082176,2.7343,3689.8,3689.7,1.6485]
[1754326082482,0.542,3689.7,3689.5,0.54201]
[1754326082885,1.0722,3689.6,3689.5,0.54201]
[1754326083183,3.27631,3689.7,3689.5,2.19052]
[1754326083485,1.0722,3689.6,3689.5,2.19052]
[1754326085393,2.7343,3689.6,3689.5,2.19052]
[1754326086797,0.54205,3689.3,3689.2,3.2078]
[1754326086992,1.35505,3689.6,3688.8,0.8725]
[1754326086993,2.7343,3688.9,3688.8,3.2078]
[1754326087194,3.27642,3688.9,3688.3,3.2078]
[1754326087398,2.7343,3688.8,3688.7,0.54213]
[1754326087599,3.2078,3689.5,3688.7,0.776]
[1754326087798,2.15782,3689.9,3689.1,1.31808]
[1754326087799,1.0722,3689.2,3689.1,1.31808]
[1754326088000,1.0722,3689.2,3689.1,2.19058]
[1754326088200,2.7343,3689.2,3689.1,2.19058]
[1754326088402,1.8751,3689.2,3689.1,2.19058]
[1754326088603,1.8751,3689.2,3689.1,2.64498]
[1754326088900,1.0722,3689.2,3689.1,2.64498]
[1754326089302,1.0722,3689.9,3689.2,1.6485]
[1754326089498,1.6621,3689.3,3688.7,3.2078]
[1754326089701,0.54213,3688.8,3688.7,3.2078]
[1754326089898,2.20423,3688.8,3688.7,3.2078]
[1754326090101,3.27643,3688.8,3688.7,3.2078]
[1754326090602,2.6958,3688.6,3688.5,0.54217]
[1754326090802,1.6322,3688.6,3688.5,1.43817]
[1754326091102,1.6322,3688.6,3688.5,2.18687]
[1754326091302,0.54217,3688.5,3688.4,0.54218]
[1754326091502,0.54217,3688.5,3688.3,3.2078]
[1754326091503,2.6958,3688.4,3688.3,3.2078]
[1754326092599,1.0636,3688.4,3688.3,3.2078]
[1754326092800,1.60575,3688.7,3688.4,0.4242]
[1754326092999,1.60575,3688.7,3688.6,0.4242]
[1754326093301,1.60575,3688.7,3688.6,2.0689]
[1754326093608,0.54218,3688.5,3688.4,1.6447]
[1754326093905,1.30498,3688.5,3688.4,1.6447]
[1754326094100,0.7628,3688.5,3688.4,1.6447]
[1754326094306,0.8694,3688.7,3688.5,0.54217]
[1754326094508,1.0636,3688.6,3688.5,1.6447]
[1754326094705,2.6958,3688.6,3688.5,1.6447]
[1754326095300,1.8264,3688.6,3688.5,1.6447]
[1754326095605,1.0636,3688.6,3688.5,2.0689]
[1754326095804,1.0636,3688.8,3688.6,2.61106]
[1754326096001,1.0636,3688.8,3688.7,2.0689]
[1754326096397,1.0636,3689.0,3688.8,0.4242]
[1754326096602,1.0636,3689.0,3688.9,2.0689]
[1754326096802,2.6958,3689.0,3688.6,0.54215]
[1754326097007,2.6958,3688.8,3688.6,2.18685]
[1754326097202,2.6958,3689.2,3688.6,2.18685]
[1754326097405,2.6958,3689.2,3688.4,3.42435]
[1754326097611,1.30489,3689.1,3689.0,1.6447]
[1754326097998,0.54209,3689.1,3689.0,1.6447]
[1754326098205,2.36849,3689.1,3689.0,1.6447]
[1754326098508,1.0636,3688.8,3688.7,2.18683]
[1754326098808,1.8264,3688.8,3688.7,2.18683]
[1754326099013,2.6958,3688.8,3688.7,2.18683]
[1754326099711,0.54215,3688.7,3688.6,0.54215]
[1754326099907,0.54215,3688.7,3688.6,2.18685]
[1754326099908,2.6958,3688.7,3688.6,2.18685]
[1754326101108,1.0636,3688.7,3688.6,2.61105]
[1754326102707,1.6322,3690.1,3688.9,0.7487]
[1754326103012,1.3547,3690.6,3689.9,0.896]
[1754326103013,1.41136,3690.0,3689.9,0.896]
[1754326103212,1.41136,3690.0,3689.8,0.7487]
[1754326103213,0.54196,3690.0,3689.8,0.7487]
[1754326103405,0.54196,3690.0,3689.6,0.896]
[1754326103609,0.7628,3689.9,3689.8,0.54197]
[1754326103815,1.6322,3689.9,3689.8,0.54197]
[1754326104305,1.6322,3689.9,3689.8,1.43797]
[1754326104511,4.56242,3690.8,3689.8,1.43797]
[1754326104512,0.54192,3690.3,3690.1,0.54192]
[1754326104812,3.23775,3690.1,3689.9,0.54196]
[1754326105113,0.54193,3690.2,3690.1,0.54194]
[1754326105313,0.54193,3690.2,3690.0,0.54194]
[1754326105713,2.6958,3690.1,3690.0,0.54194]
[1754326105910,2.6958,3690.0,3689.9,0.54197]
[1754326106913,1.8264,3690.0,3689.9,3.20497]
[1754326107506,2.6958,3690.0,3689.9,3.20497]
[1754326107907,3.23777,3689.9,3689.8,0.54197]
[1754326108109,2.6958,3689.9,3689.8,0.54197]
[1754326108413,1.933,3690.6,3690.2,0.54191]
[1754326108606,3.2078,3690.8,3690.3,1.9143]
[1754326108911,3.23769,3690.5,3690.3,0.896]
[1754326109111,2.6958,3690.4,3690.3,0.896]
[1754326109511,1.8264,3690.4,3690.3,2.663]
[1754326110010,1.41126,3690.7,3690.6,0.54186]
[1754326110207,3.23766,3690.7,3690.6,0.54186]
[1754326110406,1.8264,3690.7,3690.6,3.20486]
[1754326110610,3.2078,3690.8,3690.6,0.54186]
[1754326110816,3.2078,3690.8,3690.7,2.663]
[1754326111011,0.54183,3690.9,3690.7,2.663]
[1754326111209,2.6958,3690.8,3690.7,2.663]
[1754326111714,0.54188,3690.5,3690.4,3.74968]
[1754326112015,2.36828,3690.5,3690.4,0.54188]
[1754326112205,3.23768,3690.5,3690.4,1.43788]
[1754326112414,2.6958,3690.5,3690.4,1.43788]
[1754326112607,1.0,3691.0,3690.3,2.663]
[1754326112608,0.7628,3690.8,3690.3,2.663]
[1754326112811,1.60543,3690.8,3690.7,0.54183]
[1754326113111,1.0,3691.0,3690.8,0.54182]
[1754326113310,2.8264,3691.0,3690.8,1.767]
[1754326113514,0.54185,3690.7,3690.6,0.54185]
[1754326113716,2.47485,3690.7,3690.6,1.43785]
[1754326113917,2.47485,3690.7,3690.6,0.54185]
[1754326114117,3.23765,3690.7,3690.6,0.54185]
[1754326114308,0.54187,3690.6,3690.4,0.54188]
[1754326114506,2.6958,3690.5,3690.4,0.54188]
[1754326114716,2.6958,3690.5,3690.4,2.45618]
[1754326114919,2.6958,3690.5,3690.4,3.20488]
[1754326115415,2.35452,3691.0,3690.1,0.896]
[1754326115606,3.23772,3690.3,3690.2,0.896]
[1754326115812,1.30474,3690.1,3690.0,3.2078]
[1754326116011,1.41136,3690.0,3689.8,1.43797]
[1754326116309,1.0636,3689.9,3689.8,3.20497]
[1754326116515,0.54194,3690.1,3689.9,0.54195]
[1754326116816,1.0636,3690.1,3690.0,2.663]
[1754326117212,0.54191,3690.3,3690.2,0.54191]
[1754326117412,0.54191,3690.3,3690.2,2.663]
[1754326117813,3.23774,3690.1,3690.0,3.2078]
[1754326118113,1.8264,3689.9,3689.8,1.43797]
[1754326118311,0.7628,3689.9,3689.8,2.45627]
[1754326118514,0.54196,3690.0,3689.6,3.2078]
[1754326118813,0.54202,3689.5,3689.3,1.90241533]
[1754326119021,1.933,3689.7,3689.4,0.54203]
[1754326119212,0.54204,3689.5,3689.4,0.896]
[1754326119613,2.36844,3689.5,3689.4,0.896]
[1754326119812,1.0636,3689.3,3688.8,5.11021533]
[1754326120020,2.6958,3689.0,3688.9,2.18681]
[1754326120318,2.28744,3689.4,3689.2,0.54206]
[1754326120511,1.7454,3689.3,3689.2,1.7657]
[1754326120713,4.5627,3690.0,3688.9,1.35527]
[1754326121020,0.54201,3689.7,3689.5,0.54202]
[1754326121220,0.9884,3689.6,3689.5,3.23332]
[1754326121517,1.7454,3689.6,3689.5,3.23332]
[1754326121815,2.6409,3689.6,3689.5,0.9256]
[1754326122015,2.19456,3689.3,3689.1,0.54207]
[1754326122221,2.6409,3689.2,3689.1,0.54207]
[1754326122416,0.54205,3689.4,3689.3,0.54205]
[1754326122715,2.6409,3689.4,3689.3,0.54205]
[1754326123115,2.28749,3689.1,3689.0,0.9256]
[1754326123413,0.8955,3689.1,3689.0,0.9256]
[1754326123715,0.8955,3689.1,3688.9,2.6913]
[1754326123716,0.5421,3689.1,3688.9,2.6913]
[1754326124018,1.7454,3689.5,3689.4,2.24714]
[1754326124220,1.7454,3689.5,3689.4,3.23334]
[1754326124518,1.7454,3689.5,3689.4,2.6913]
[1754326125517,2.6409,3689.9,3689.4,2.6913]
[1754326125713,3.74976,3690.0,3689.6,3.2333]
[1754326125714,1.7454,3689.7,3689.6,3.2333]
[1754326126221,2.6409,3689.7,3689.6,3.2333]
[1754326126517,2.28741,3689.6,3689.5,0.54202]
[1754326126819,2.6409,3689.6,3689.5,0.54202]
[1754326127025,2.6409,3689.6,3689.5,1.46762]
[1754326127312,2.6409,3689.6,3689.5,0.54202]
[1754326128022,1.7454,3689.6,3689.5,3.23332]
[1754326129922,2.6409,3689.6,3689.5,3.23332]
[1754326130516,2.6409,3689.6,3689.5,0.54202]
[1754326131421,1.35507,3689.5,3688.9,0.5421]
[1754326131618,1.35507,3689.5,3689.1,0.54208]
[1754326131817,1.35507,3689.5,3689.0,0.54209]
[1754326131818,0.54208,3689.2,3689.0,0.54209]
[1754326132013,0.5421,3689.0,3688.9,0.5421]
[1754326132220,3.183,3689.0,3688.8,4.1334]
[1754326132421,2.6409,3688.9,3688.8,4.67552]
[1754326132720,3.2078,3689.6,3688.4,3.25785533]
[1754326132721,3.2078,3689.1,3688.4,0.9256]
[1754326133017,1.7454,3689.0,3688.9,1.5283]
[1754326133414,1.7454,3689.0,3688.9,2.4539]
[1754326133720,0.9884,3689.0,3688.9,3.2334]
[1754326134821,1.7454,3689.0,3688.7,0.9256]
[1754326135017,1.6525,3689.0,3688.9,1.7051]
[1754326135217,1.6525,3689.5,3689.0,0.9256]
[1754326135522,0.757,3689.4,3689.1,2.6913]
[1754326135724,3.18296,3689.3,3689.2,0.54205]
[1754326135922,0.757,3689.2,3689.1,0.54207]
[1754326136122,3.18298,3689.1,3689.0,0.54209]
[1754326136925,2.6409,3689.1,3689.0,0.54209]
[1754326137426,2.6409,3689.1,3689.0,1.46769]
[1754326137923,0.5421,3689.0,3688.8,0.54212]
[1754326138124,2.6409,3688.9,3688.8,0.54212]
[1754326138421,2.6409,3688.9,3688.4,3.2078]
[1754326138422,4.4862,3688.5,3688.4,3.2078]
[1754326138615,0.54223,3688.1,3688.0,3.2078]
[1754326138821,0.54224,3688.1,3687.9,0.54225]
[1754326139019,0.54223,3688.2,3688.0,0.54224]
[1754326139220,2.6409,3688.3,3687.9,0.54226]
[1754326139420,2.6409,3687.9,3687.8,0.54227]
[1754326140418,2.6409,3687.9,3687.8,1.46787]
[1754326140614,3.2078,3688.5,3688.3,0.54219]
[1754326140820,3.2078,3689.0,3688.9,0.54211]
[1754326141021,1.7454,3688.9,3688.8,3.23342]
[1754326141219,0.9884,3689.0,3688.9,0.54211]
[1754326141421,23.3608,3689.6,3688.3,1.9118]
[1754326141422,1.35511,3689.4,3688.3,1.9118]
[1754326141712,1.7454,3688.8,3688.7,2.24723]
[1754326141917,2.6409,3688.8,3688.7,2.6913]
[1754326142125,3.2078,3689.1,3688.2,3.2078]
[1754326142126,0.54216,3688.6,3688.4,0.9256]
[1754326142314,3.18308,3688.5,3688.2,3.2078]
[1754326142520,1.6525,3688.3,3688.2,2.24732]
[1754326142916,2.19474,3688.1,3688.0,0.9256]
[1754326143126,0.54223,3688.2,3688.0,0.54223]
[1754326143528,0.54224,3688.1,3687.9,2.30795]
[1754326143721,1.43784,3687.4,3687.2,4.1334]
[1754326144026,2.6409,3687.4,3687.3,0.54234]
[1754326144216,0.54235,3687.3,3687.1,0.7795]
[1754326144420,0.54235,3687.3,3687.1,1.7051]
[1754326144622,2.6409,3687.2,3687.1,1.7051]
[1754326144924,2.6409,3687.2,3687.1,2.6913]
[1754326145226,1.7454,3687.2,3687.1,2.6913]
[1754326145620,1.7454,3687.5,3687.4,1.32182]
[1754326145820,2.6409,3687.5,3687.4,1.7051]
[1754326146017,2.6409,3687.5,3687.4,2.6913]
[1754326146623,0.54226,3687.9,3687.2,2.6913]
[1754326146925,0.54226,3687.9,3686.8,3.2078]
[1754326146926,4.56366,3687.4,3686.8,3.2078]
[1754326147129,2.6409,3686.9,3686.8,4.1334]
[1754326147620,0.9884,3687.2,3687.0,0.54238]
[1754326147825,0.9884,3687.2,3687.1,2.6913]
[1754326148026,0.8955,3687.1,3686.8,3.2078]
[1754326148229,3.18331,3686.9,3686.8,3.2078]
[1754326148925,2.6409,3686.9,3686.8,4.1334]
[1754326149320,2.6409,3686.9,3686.8,5.8991]
[1754326150120,2.6409,3686.9,3686.8,4.1334]
[1754326150829,4.4149,3686.9,3686.8,4.7202]
[1754326151122,1.35606,3686.8,3686.3,3.2078]
[1754326151327,5.02048,3686.4,3686.3,4.7245]
[1754326151524,5.02048,3686.4,3686.3,3.2078]
[1754326151720,0.7713,3686.6,3686.5,0.6402]
[1754326152030,1.8653,3686.6,3686.5,4.4505]
[1754326152229,3.5543,3686.6,3686.5,4.4505]
[1754326152524,2.1715,3686.4,3686.3,3.2078]
[1754326152723,3.5543,3686.4,3686.3,5.9687]
[1754326152918,3.5543,3686.4,3686.3,7.6583]
[1754326153225,1.7699,3686.9,3686.6,0.54245]
[1754326153420,3.2078,3687.0,3686.9,0.7239]
[1754326153731,1.31366,3687.3,3687.1,0.54237]
[1754326153924,0.7713,3687.3,3687.1,0.54237]
[1754326154429,1.7699,3687.3,3687.2,2.7047]
[1754326154631,0.7713,3687.3,3687.2,2.7047]
[1754326154825,0.9986,3687.6,3687.5,3.24702]
[1754326155031,0.54229,3687.8,3687.7,2.7047]
[1754326155227,1.54089,3687.8,3687.7,2.7047]
[1754326155427,3.23589,3687.8,3687.7,2.7047]
[1754326155730,3.23589,3687.8,3687.7,0.9314]
[1754326155931,2.6936,3687.8,3687.7,0.9314]
[1754326156233,2.31215,3688.0,3687.8,3.24697]
[1754326156428,2.31215,3688.0,3687.9,2.7047]
[1754326156622,1.7699,3688.0,3687.9,2.7047]
[1754326156823,3.2078,3688.2,3688.1,1.6553]
[1754326157024,3.2078,3688.2,3688.1,2.7047]
[1754326157422,0.54219,3688.4,3688.1,3.24692]
[1754326157630,1.7699,3688.3,3688.2,2.7047]
[1754326157831,43.77356,3688.6,3688.4,2.7047]
[1754326158032,0.54219,3688.4,3687.9,3.2078]
[1754326158225,42.2328,3688.6,3688.5,0.54217]
[1754326158425,3.2078,3688.6,3688.5,0.54217]
[1754326158630,3.2078,3688.6,3688.5,3.24687]
[1754326158929,0.7713,3688.8,3688.7,3.24684]
[1754326159330,4.56291,3689.4,3688.3,3.2078]
[1754326159331,0.54208,3689.2,3689.0,0.9314]
[1754326159530,0.54208,3689.2,3689.1,2.7047]
[1754326159830,2.31198,3689.2,3689.1,2.7047]
[1754326160421,3.2078,3689.4,3689.2,1.7733]
[1754326160623,3.2078,3689.4,3689.3,2.7047]
[1754326160825,0.54204,3689.5,3689.3,0.7239]
[1754326161025,0.54204,3689.5,3688.7,3.74993]
[1754326161026,0.7713,3689.1,3688.7,3.74993]
[1754326161224,2.6936,3688.8,3688.7,4.1392]
[1754326161733,1.7699,3688.8,3688.7,6.45463]
[1754326161931,0.9986,3688.8,3688.7,6.45463]
[1754326162124,2.6936,3688.8,3688.7,3.2078]
[1754326163232,2.6936,3688.6,3688.5,1.47356]
[1754326163529,1.7699,3688.6,3688.5,3.24686]
[1754326163728,1.695,3688.8,3688.7,1.47353]
[1754326163927,2.6936,3688.8,3688.7,0.9314]
[1754326164231,4.04893,3688.8,3688.2,3.2078]
[1754326164430,2.6936,3688.7,3688.2,3.2078]
[1754326164628,0.54223,3688.2,3687.8,2.7047]
[1754326164932,0.54226,3688.0,3687.9,2.7047]
[1754326165139,2.31216,3688.0,3687.9,2.7047]
[1754326165430,0.54226,3688.0,3687.9,2.7047]
[1754326165827,2.31216,3688.0,3687.9,2.7047]
[1754326166133,2.31216,3688.0,3687.7,3.2078]
[1754326166134,1.54087,3687.8,3687.7,4.8631]
[1754326166531,1.54087,3687.8,3687.7,5.9125]
[1754326167127,2.31217,3687.8,3687.7,5.9125]
[1754326168028,0.54233,3687.4,3687.3,3.2078]
[1754326168228,1.54096,3687.2,3687.1,0.9314]
[1754326168425,0.54245,3686.6,3686.5,7.81491533]
[1754326168630,0.54244,3686.7,3686.6,2.7047]
[1754326168828,2.31234,3686.7,3686.6,1.6553]
[1754326169336,2.31234,3686.7,3686.6,2.7047]
[1754326169830,4.1315,3687.0,3686.1,3.2078]
[1754326169831,0.54247,3686.5,3686.4,1.6553]
[1754326170037,0.54246,3686.6,3686.4,2.7047]
[1754326170233,0.54246,3686.6,3686.5,2.7047]
[1754326170934,0.7713,3687.3,3686.2,1.7733]
[1754326171132,0.7713,3687.3,3686.7,0.54243]
[1754326171133,0.5424,3687.0,3686.7,0.54243]
[1754326171343,1.7699,3687.3,3686.7,0.54243]
[1754326171830,0.9237,3687.6,3687.0,2.7047]
[1754326172037,1.31369,3687.0,3686.9,3.2078]
[1754326172233,3.23599,3687.0,3686.9,4.1392]
[1754326172432,1.54104,3686.7,3686.6,0.7239]
[1754326172629,3.23604,3686.7,3686.6,0.9314]
[1754326172832,2.31237,3686.5,3686.4,1.7733]
[1754326173035,2.31237,3686.5,3686.4,1.6553]
[1754326173234,0.54251,3686.2,3686.1,3.9317]
[1754326173434,0.5425,3686.3,3686.1,4.47421]
[1754326173740,0.7713,3686.2,3686.1,4.8631]
[1754326173934,2.6936,3686.2,3686.1,4.8631]